fUSD/lending_fUSD_20250513
["ID","MTS","AMOUNT","RATE_DAILY","PERIOD"]
[360907668,1747137033961,-400.0,0.00012455,2]
[360907669,1747137033971,-2252.39,0.00012455,2]
[360907670,1747137033981,-400.0,0.00012455,2]
[360907671,1747137033991,-425.75,0.00012455,2]
[360907672,1747137034001,-397.31396478,0.00012455,2]
[360907673,1747137034012,-400.0,0.00012455,2]
[360907674,1747137034021,-154.27434851,0.00012455,2]
[360907675,1747137034031,-400.0,0.00012455,2]
[360907676,1747137034041,-427.8,0.00012455,2]
[360907677,1747137034051,-456.88,0.00012455,2]
[360907678,1747137034061,-400.0,0.00012455,2]
[360907679,1747137034071,-2131.31,0.00012455,2]
[360907680,1747137034081,-405.71,0.00012455,2]
[360907681,1747137034090,-400.0,0.00012455,2]
[360907682,1747137034099,-2108.81,0.00012455,2]
[360907683,1747137034109,-400.0,0.00012455,2]
[360907684,1747137034119,-400.0,0.00012455,2]
[360907685,1747137034132,-400.0,0.00012455,2]
[360907686,1747137034142,-400.0,0.00012455,2]
[360907687,1747137034153,-400.0,0.00012455,2]
[360907688,1747137034165,-400.0,0.00012455,2]
[360907689,1747137034178,-400.0,0.00012455,2]
[360907690,1747137034188,-1180.08,0.00012455,2]
[360907691,1747137034199,-400.0,0.00012455,2]
[360907692,1747137034210,-400.0,0.00012455,2]
[360907693,1747137034220,-400.0,0.00012455,2]
[360907694,1747137034230,-400.0,0.00012455,2]
[360907695,1747137034241,-1114.67,0.00012455,2]
[360907696,1747137034253,-467.77,0.00012455,2]
[360907697,1747137034265,-400.0,0.00012455,2]
[360907698,1747137034276,-400.0,0.00012455,2]
[360907699,1747137034288,-400.0,0.00012455,2]
[360907700,1747137034299,-400.0,0.00012455,2]
[360907701,1747137034314,-400.0,0.00012455,2]
[360907702,1747137034326,-416.21437013,0.00012455,2]
[360907703,1747137034337,-400.0,0.00012455,2]
[360907704,1747137034349,-400.0,0.00012455,2]
[360907705,1747137034360,-400.0,0.00012455,2]
[360907706,1747137034371,-400.0,0.00012455,2]
[360907707,1747137034381,-1122.51,0.00012455,2]
[360907708,1747137034393,-400.0,0.00012455,2]
[360907709,1747137034404,-400.0,0.00012455,2]
[360907710,1747137034431,-400.0,0.00012455,2]
[360907711,1747137034443,-387.5,0.00012455,2]
[360907712,1747137034455,-436.29,0.00012455,2]
[360907713,1747137034465,-400.0,0.00012455,2]
[360907714,1747137034476,-400.0,0.00012455,2]
[360907715,1747137034487,-400.0,0.00012455,2]
[360907716,1747137034498,-400.0,0.00012455,2]
[360907717,1747137034509,-400.0,0.00012455,2]
[360907718,1747137034521,-400.0,0.00012455,2]
[360907719,1747137034532,-400.0,0.00012455,2]
[360907720,1747137034543,-400.0,0.00012455,2]
[360907721,1747137034554,-150.8842483,0.00012455,2]
[360907722,1747137034566,-400.0,0.00012455,2]
[360907723,1747137034576,-400.0,0.00012455,2]
[360907724,1747137034589,-400.0,0.00012455,2]
[360907725,1747137034604,-400.0,0.00012455,2]
[360907726,1747137034616,-500.0,0.00012455,2]
[360907727,1747137034629,-782.27,0.00012455,2]
[360907728,1747137034639,-155.8591271,0.00012455,2]
[360907729,1747137034650,-400.0,0.00012455,2]
[360907730,1747137034669,-546.88,0.00012455,2]
[360907731,1747137034681,-424.01,0.00012455,2]
[360907732,1747137034691,-400.0,0.00012455,2]
[360907733,1747137034704,-400.0,0.00012455,2]
[360907734,1747137034716,-429.62666437,0.00012455,2]
[360907735,1747137034727,-2191.37,0.00012455,2]
[360907736,1747137034738,-547.15733159,0.00012455,2]
[360907737,1747137034749,-400.0,0.00012455,2]
[360907738,1747137034760,-400.0,0.00012455,2]
[360907739,1747137034772,-419.77,0.00012455,2]
[360907740,1747137034783,-647.89,0.00012455,2]
[360907741,1747137034978,-400.0,0.00012455,2]
[360907742,1747137034988,-3202.24,0.00012455,2]
[360907743,1747137034998,-400.0,0.00012455,2]
[360907744,1747137035008,-2277.04,0.00012455,2]
[360907745,1747137035018,-400.27700844,0.00012455,2]
[360907746,1747137035027,-400.0,0.00012455,2]
[360907747,1747137035037,-225.17138847,0.00012455,2]
[360907748,1747137035048,-441.76,0.00012455,2]
[360907749,1747137035059,-400.0,0.00012455,2]
[360907750,1747137035069,-400.0,0.00012455,2]
[360907751,1747137035080,-400.0,0.00012455,2]
[360907752,1747137035090,-905.65,0.00012455,2]
[360907753,1747137035100,-400.0,0.00012455,2]
[360907754,1747137035110,-486.93768979,0.00012455,2]
[360907755,1747137035121,-410.14,0.00012455,2]
[360907756,1747137035130,-1477.05,0.00012455,2]
[360907757,1747137035140,-543.74,0.00012455,2]
[360907758,1747137035153,-400.0,0.00012455,2]
[360907759,1747137035166,-400.0,0.00012455,2]
[360907760,1747137035176,-400.0,0.00012455,2]
[360907761,1747137035186,-400.0,0.00012455,2]
[360907762,1747137035196,-400.0,0.00012455,2]
[360907763,1747137035205,-546.92048656,0.00012455,2]
[360907764,1747137035215,-778.03,0.00012455,2]
[360907765,1747137035225,-708.94,0.00012455,2]
[360907766,1747137035234,-400.0,0.00012455,2]
[360907767,1747137035244,-400.0,0.00012455,2]
[360907768,1747137035253,-1860.4,0.00012455,2]
[360907769,1747137035262,-1008.58,0.00012455,2]
[360907770,1747137035272,-400.0,0.00012455,2]
[360907771,1747137035281,-400.0,0.00012455,2]
[360907772,1747137035290,-2234.77,0.00012455,2]
[360907773,1747137035300,-400.0,0.00012455,2]
[360907774,1747137035309,-400.0,0.00012455,2]
[360907775,1747137035319,-400.0,0.00012455,2]
[360907776,1747137035330,-1167.83,0.00012455,2]
[360907777,1747137035340,-400.0,0.00012455,2]
[360907778,1747137035349,-400.0,0.00012455,2]
[360907779,1747137035358,-220.4192144,0.00012455,2]
[360907780,1747137035368,-941.71,0.00012455,2]
[360907781,1747137035377,-347.04305301,0.00012455,2]
[360907782,1747137035387,-739.51,0.00012455,2]
[360907783,1747137035396,-450.0,0.00012455,2]
[360907784,1747137035406,-400.0,0.00012455,2]
[360907785,1747137035421,-414.66,0.00012455,2]
[360907786,1747137035431,-176.33948278,0.00012455,2]
[360907787,1747137035441,-4266.87,0.00012455,2]
[360907788,1747137035451,-400.0,0.00012455,2]
[360907789,1747137035460,-631.54,0.00012455,2]
[360907790,1747137035470,-400.0,0.00012455,2]
[360907791,1747137035480,-400.0,0.00012455,2]
[360907792,1747137035490,-603.24,0.00012455,2]
[360907793,1747137035499,-638.59,0.00012455,2]
[360907794,1747137035509,-281.80552086,0.00012455,2]
[360907795,1747137035518,-400.0,0.00012455,2]
[360907796,1747137035527,-400.0,0.00012455,2]
[360907797,1747137035537,-409.71773951,0.00012455,2]
[360907798,1747137035546,-545.19,0.00012455,2]
[360907799,1747137035555,-400.0,0.00012455,2]
[360907800,1747137035565,-400.0,0.00012455,2]
[360907801,1747137035574,-491.202171,0.00012455,2]
[360907802,1747137035584,-400.0,0.00012455,2]
[360907803,1747137035593,-400.0,0.00012455,2]
[360907804,1747137035603,-400.0,0.00012455,2]
[360907805,1747137035612,-400.0,0.00012455,2]
[360907806,1747137035622,-400.0,0.00012455,2]
[360907807,1747137035632,-400.0,0.00012455,2]
[360907808,1747137035642,-400.0,0.00012455,2]
[360907809,1747137035651,-400.0,0.00012455,2]
[360907810,1747137035663,-400.0,0.00012455,2]
[360907811,1747137035672,-773.98,0.00012455,2]
[360907812,1747137035681,-458.36355577,0.00012455,2]
[360907813,1747137035691,-400.0,0.00012455,2]
[360907814,1747137035700,-400.0,0.00012455,2]
[360907815,1747137035710,-400.0,0.00012455,2]
[360907816,1747137035719,-400.0,0.00012455,2]
[360907817,1747137035729,-400.0,0.00012455,2]
[360907818,1747137035739,-400.0,0.00012455,2]
[360907819,1747137035748,-1018.75,0.00012455,2]
[360907820,1747137035757,-400.0,0.00012455,2]
[360907821,1747137035766,-400.0,0.00012455,2]
[360907822,1747137035776,-693.32,0.00012455,2]
[360907823,1747137035785,-254.05835253,0.00012455,2]
[360907824,1747137035795,-400.0,0.00012455,2]
[360907825,1747137035804,-453.81786962,0.00012455,2]
[360907826,1747137035814,-400.0,0.00012455,2]
[360907827,1747137035824,-214.10967008,0.00012455,2]
[360907828,1747137035833,-983.57,0.00012455,2]
[360907829,1747137035843,-400.0,0.00012455,2]
[360907830,1747137035852,-660.35,0.00012455,2]
[360907831,1747137035861,-450.0,0.00012455,2]
[360907832,1747137035869,-400.0,0.00012455,2]
[360907833,1747137035876,-400.0,0.00012455,2]
[360907834,1747137035884,-400.0,0.00012455,2]
[360907835,1747137035892,-400.0,0.00012455,2]
[360907836,1747137035900,-400.0,0.00012455,2]
[360907837,1747137035908,-278.14150496,0.00012455,2]
[360907838,1747137035917,-400.0,0.00012455,2]
[360907839,1747137035924,-400.0,0.00012455,2]
[360907840,1747137035931,-400.0,0.00012455,2]
[360907841,1747137035939,-400.0,0.00012455,2]
[360907842,1747137035949,-400.0,0.00012455,2]
[360907843,1747137035956,-400.0,0.00012455,2]
[360907844,1747137035963,-435.91,0.00012455,2]
[360907845,1747137035970,-400.0,0.00012455,2]
[360907846,1747137035976,-474.11,0.00012455,2]
[360907847,1747137035983,-400.0,0.00012455,2]
[360907848,1747137035992,-400.0,0.00012455,2]
[360907849,1747137036000,-2623.63,0.00012455,2]
[360907850,1747137036007,-400.0,0.00012455,2]
[360907851,1747137036015,-542.17,0.00012455,2]
[360907852,1747137036023,-456.63,0.00012455,2]
[360907853,1747137036031,-430.33,0.00012455,2]
[360907854,1747137036040,-524.89,0.00012455,2]
[360907855,1747137036049,-400.0,0.00012455,2]
[360907856,1747137036056,-400.0,0.00012455,2]
[360907857,1747137036063,-400.0,0.00012455,2]
[360907858,1747137036070,-400.0,0.00012455,2]
[360907859,1747137036077,-542.09146549,0.00012455,2]
[360907860,1747137036086,-400.0,0.00012455,2]
[360907861,1747137036096,-447.35,0.00012455,2]
[360907862,1747137036105,-400.0,0.00012455,2]
[360907863,1747137036114,-1068.0,0.00012455,2]
[360907864,1747137036128,-400.0,0.00012455,2]
[360907865,1747137036137,-400.0,0.00012455,2]
[360907866,1747137036147,-400.0,0.00012455,2]
[360907867,1747137036156,-400.0,0.00012455,2]
[360907868,1747137036169,-400.0,0.00012455,2]
[360907869,1747137036179,-400.0,0.00012455,2]
[360907870,1747137036188,-400.0,0.00012455,2]
[360907871,1747137036197,-1803.41,0.00012455,2]
[360907872,1747137036207,-400.0,0.00012455,2]
[360907873,1747137036216,-400.0,0.00012455,2]
[360907874,1747137036225,-63613.84,0.00012455,2]
[360907875,1747137036235,-400.0,0.00012455,2]
[360907876,1747137036244,-400.0,0.00012455,2]
[360907877,1747137036253,-445.1,0.00012455,2]
[360907878,1747137036262,-500.0,0.00012455,2]
[360907879,1747137036272,-476.0387701,0.00012455,2]
[360907880,1747137036281,-470.0,0.00012455,2]
[360907881,1747137036291,-400.0,0.00012455,2]
[360907882,1747137036301,-400.0,0.00012455,2]
[360907883,1747137036311,-400.0,0.00012455,2]
[360907884,1747137036320,-779.23,0.00012455,2]
[360907885,1747137036330,-400.0,0.00012455,2]
[360907886,1747137036339,-400.0,0.00012455,2]
[360907887,1747137036349,-400.0,0.00012455,2]
[360907888,1747137036358,-745.43,0.00012455,2]
[360907889,1747137036368,-400.0,0.00012455,2]
[360907890,1747137036377,-470.0,0.00012455,2]
[360907891,1747137036386,-505.71,0.00012455,2]
[360907892,1747137036396,-400.0,0.00012455,2]
[360907893,1747137036405,-400.0,0.00012455,2]
[360907894,1747137036419,-854.57,0.00012455,2]
[360907895,1747137036428,-583.92,0.00012455,2]
[360907896,1747137036439,-400.0,0.00012455,2]
[360907897,1747137036448,-400.0,0.00012455,2]
[360907898,1747137036458,-400.0,0.00012455,2]
[360907899,1747137036469,-400.0,0.00012455,2]
[360907900,1747137036478,-400.0,0.00012455,2]
[360907901,1747137036488,-400.0,0.00012455,2]
[360907902,1747137036498,-416.91,0.00012455,2]
[360907903,1747137036507,-725.52,0.00012455,2]
[360907904,1747137036517,-400.0,0.00012455,2]
[360907905,1747137036526,-400.0,0.00012455,2]
[360907906,1747137036535,-170.62257263,0.00012455,2]
[360907907,1747137036545,-400.0,0.00012455,2]
[360907908,1747137036554,-400.0,0.00012455,2]
[360907909,1747137036563,-400.0,0.00012455,2]
[360907910,1747137036573,-659.9,0.00012455,2]
[360907911,1747137036582,-433.16,0.00012455,2]
[360907912,1747137036591,-400.0,0.00012455,2]
[360907913,1747137036601,-510.84622579,0.00012455,2]
[360907914,1747137036610,-310.48361437,0.00012455,2]
[360907915,1747137036619,-400.0,0.00012455,2]
[360907916,1747137036628,-1376.55,0.00012455,2]
[360907917,1747137036637,-400.0,0.00012455,2]
[360907918,1747137036646,-400.0,0.00012455,2]
[360907919,1747137036656,-503.78202236,0.00012455,2]
[360907920,1747137036668,-400.0,0.00012455,2]
[360907921,1747137036677,-400.0,0.00012455,2]
[360907922,1747137036687,-400.0,0.00012455,2]
[360907923,1747137036696,-400.2567098,0.00012455,2]
[360907924,1747137036705,-1147.77,0.00012455,2]
[360907925,1747137036715,-400.0,0.00012455,2]
[360907926,1747137036724,-400.0,0.00012455,2]
[360907927,1747137036733,-400.0,0.00012455,2]
[360907928,1747137036743,-164952.05998146,0.00012456,2]
[360907929,1747137036752,-400.0,0.00012456,2]
[360907930,1747137036761,-231.48319388,0.00012456,2]
[360907931,1747137036773,-400.0,0.00012456,2]
[360907932,1747137036782,-183.48644816,0.00012456,2]
[360907933,1747137036791,-400.0,0.00012456,2]
[360907934,1747137036800,-400.0,0.00012456,2]
[360907935,1747137036810,-400.0,0.00012456,2]
[360907936,1747137036820,-170.88710929,0.00012456,2]
[360907937,1747137036830,-400.0,0.00012456,2]
[360907938,1747137036840,-400.0,0.00012456,2]
[360907939,1747137036850,-400.0,0.00012456,2]
[360907940,1747137036860,-400.0,0.00012456,2]
[360907941,1747137036869,-400.0,0.00012456,2]
[360907942,1747137036879,-500.0,0.00012456,2]
[360907943,1747137036888,-400.0,0.00012456,2]
[360907944,1747137036897,-400.0,0.00012456,2]
[360907945,1747137036906,-1014.23419445,0.00012456,2]
[360907946,1747137036917,-400.0,0.00012456,2]
[360907947,1747137036926,-400.0,0.00012456,2]
[360907948,1747137036935,-426.14,0.00012456,2]
[360907949,1747137036944,-400.0,0.00012456,2]
[360907950,1747137036953,-400.0,0.00012456,2]
[360907951,1747137036963,-400.0,0.00012456,2]
[360907952,1747137036972,-400.0,0.00012456,2]
[360907953,1747137036981,-400.0,0.00012456,2]
[360907954,1747137036990,-500.0,0.00012456,2]
[360907955,1747137036999,-400.0,0.00012456,2]
[360907956,1747137037009,-400.0,0.00012456,2]
[360907957,1747137037018,-400.0,0.00012456,2]
[360907958,1747137037027,-400.0,0.00012456,2]
[360907959,1747137037037,-400.0,0.00012456,2]
[360907960,1747137037046,-400.0,0.00012456,2]
[360907961,1747137037055,-400.0,0.00012456,2]
[360907962,1747137037064,-400.0,0.00012456,2]
[360907963,1747137037073,-422.45,0.00012456,2]
[360907964,1747137037083,-307.91007631,0.00012456,2]
[360907965,1747137037092,-470.01,0.00012456,2]
[360907966,1747137037102,-400.0,0.00012456,2]
[360907967,1747137037112,-403.98,0.00012456,2]
[360907968,1747137037124,-332.90768522,0.00012456,2]
[360907969,1747137037133,-400.0,0.00012456,2]
[360907970,1747137037143,-400.0,0.00012456,2]
[360907971,1747137037157,-400.0,0.00012456,2]
[360907972,1747137037171,-400.0,0.00012456,2]
[360907973,1747137037180,-400.0,0.00012456,2]
[360907974,1747137037189,-400.0,0.00012456,2]
[360907975,1747137037201,-400.0,0.00012456,2]
[360907976,1747137037210,-321.44370099,0.00012456,2]
[360907977,1747137037220,-400.0,0.00012456,2]
[360907978,1747137037229,-400.0,0.00012456,2]
[360907979,1747137037239,-437.54914359,0.00012456,2]
[360907980,1747137037248,-325.56497061,0.00012456,2]
[360907981,1747137037260,-400.0,0.00012456,2]
[360907982,1747137037269,-400.0,0.00012456,2]
[360907983,1747137037278,-400.0,0.00012456,2]
[360907984,1747137037287,-400.0,0.00012456,2]
[360907985,1747137037297,-500.0,0.00012456,2]
[360907986,1747137037306,-400.0,0.00012456,2]
[360907987,1747137037315,-400.0,0.00012456,2]
[360907988,1747137037325,-400.0,0.00012456,2]
[360907989,1747137037335,-346.03341167,0.00012456,2]
[360907990,1747137037344,-400.0,0.00012456,2]
[360907991,1747137037354,-400.0,0.00012456,2]
[360907992,1747137037364,-400.0,0.00012456,2]
[360907993,1747137037373,-400.0,0.00012456,2]
[360907994,1747137037382,-400.0,0.00012456,2]
[360907995,1747137037391,-400.0,0.00012456,2]
[360907996,1747137037400,-428.54,0.00012456,2]
[360907997,1747137037413,-400.0,0.00012456,2]
[360907998,1747137037422,-389.49759652,0.00012456,2]
[360907999,1747137037432,-400.0,0.00012456,2]
[360908000,1747137037441,-513.48,0.00012456,2]
[360908001,1747137037452,-400.0,0.00012456,2]
[360908002,1747137037462,-400.0,0.00012456,2]
[360908003,1747137037471,-400.0,0.00012456,2]
[360908004,1747137037481,-426.79,0.00012456,2]
[360908005,1747137037491,-400.0,0.00012456,2]
[360908006,1747137037501,-400.0,0.00012456,2]
[360908007,1747137037511,-400.0,0.00012456,2]
[360908008,1747137037520,-400.0,0.00012456,2]
[360908009,1747137037529,-400.0,0.00012456,2]
[360908010,1747137037539,-400.0,0.00012456,2]
[360908011,1747137037549,-400.0,0.00012456,2]
[360908012,1747137037558,-400.0,0.00012456,2]
[360908013,1747137037567,-400.0,0.00012456,2]
[360908014,1747137037577,-400.0,0.00012456,2]
[360908015,1747137037586,-474.34,0.00012456,2]
[360908016,1747137037595,-400.0,0.00012456,2]
[360908017,1747137037605,-400.0,0.00012456,2]
[360908018,1747137037614,-400.0,0.00012456,2]
[360908019,1747137037624,-400.0,0.00012456,2]
[360908020,1747137037633,-160.11352111,0.00012456,2]
[360908021,1747137037643,-191.21618575,0.00012456,2]
[360908022,1747137037653,-423.01,0.00012456,2]
[360908023,1747137037663,-400.0,0.00012456,2]
[360908024,1747137037672,-548.68765597,0.00012456,2]
[360908025,1747137037682,-400.0,0.00012456,2]
[360908026,1747137037691,-400.0,0.00012456,2]
[360908027,1747137037701,-400.0,0.00012456,2]
[360908028,1747137037711,-400.0,0.00012456,2]
[360908029,1747137037721,-400.0,0.00012456,2]
[360908030,1747137037730,-400.0,0.00012456,2]
[360908031,1747137037740,-400.0,0.00012456,2]
[360908032,1747137037750,-400.0,0.00012456,2]
[360908033,1747137037759,-400.0,0.00012456,2]
[360908034,1747137037770,-400.0,0.00012456,2]
[360908035,1747137037780,-400.0,0.00012456,2]
[360908036,1747137037789,-400.0,0.00012456,2]
[360908037,1747137037799,-990.1,0.00012456,2]
[360908038,1747137037809,-400.0,0.00012456,2]
[360908039,1747137037818,-400.0,0.00012456,2]
[360908040,1747137037828,-400.0,0.00012456,2]
[360908041,1747137037837,-400.0,0.00012456,2]
[360908042,1747137037846,-400.0,0.00012456,2]
[360908043,1747137038008,-400.0,0.00012456,2]
[360908044,1747137038019,-400.0,0.00012456,2]
[360908045,1747137038028,-400.0,0.00012456,2]
[360908046,1747137038038,-400.0,0.00012456,2]
[360908047,1747137038047,-400.0,0.00012456,2]
[360908048,1747137038057,-314.5268071,0.00012456,2]
[360908049,1747137038067,-279.47846065,0.00012456,2]
[360908050,1747137038077,-483.44,0.00012456,2]
[360908051,1747137038088,-400.0,0.00012456,2]
[360908052,1747137038098,-388.75798477,0.00012456,2]
[360908053,1747137038108,-400.0,0.00012456,2]
[360908054,1747137038120,-400.0,0.00012456,2]
[360908055,1747137038130,-4388.43,0.00012456,2]
[360908057,1747137038140,-400.0,0.00012456,2]
[360908058,1747137038152,-7239.75432285,0.00012456,2]
[360908066,1747137040128,-180.47449324,0.00011904,2]
[360908067,1747137040138,-403.09998653,0.00012455,2]
[360908068,1747137040150,-247.53039057,0.00012455,2]
[360908069,1747137040181,-152.46960943,0.00012455,2]
[360908070,1747137040192,-400.0,0.00012455,2]
[360908071,1747137040201,-11.47891909,0.00012455,2]
[360908072,1747137040212,-388.52108091,0.00012455,2]
[360908073,1747137040222,-322.92017309,0.00012455,2]
[360908074,1747137040233,-77.07982691,0.00012455,2]
[360908075,1747137040243,-563.92371886,0.00012455,2]
[360908076,1747137040252,-1087.64645423,0.00012456,2]
[360908077,1747137040569,-400.0,0.00012455,2]
[360908078,1747137040578,-306.07341574,0.00012455,2]
[360908082,1747137043308,-93.92658426,0.00012455,2]
[360908083,1747137043318,-400.0,0.00012455,2]
[360908084,1747137043327,-400.0,0.00012455,2]
[360908085,1747137043337,-400.0,0.00012455,2]
[360908086,1747137043346,-400.0,0.00012455,2]
[360908087,1747137043356,-400.0,0.00012455,2]
[360908088,1747137043366,-145.41922292,0.00012456,2]
[360908089,1747137043375,-400.0,0.00012456,2]
[360908090,1747137043384,-765.02,0.00012456,2]
[360908091,1747137043393,-400.0,0.00012456,2]
[360908092,1747137043403,-521.34,0.00012456,2]
[360908093,1747137043412,-1789.37170288,0.00012456,2]
[360908094,1747137043440,-166.51829712,0.00012456,2]
[360908095,1747137043450,-2084.67241641,0.00012456,2]
[360908096,1747137043461,-923.36758359,0.00012456,2]
[360908097,1747137043471,-400.0,0.00012456,2]
[360908098,1747137043480,-400.0,0.00012456,2]
[360908099,1747137043490,-522.64,0.00012456,2]
[360908100,1747137043499,-400.0,0.00012456,2]
[360908101,1747137043508,-1367.38,0.00012456,2]
[360908102,1747137043518,-400.0,0.00012456,2]
[360908103,1747137043527,-400.0,0.00012456,2]
[360908104,1747137043536,-3788.51,0.00012456,2]
[360908105,1747137043546,-1113.44,0.00012456,2]
[360908106,1747137043555,-400.0,0.00012456,2]
[360908107,1747137043564,-591.65,0.00012456,2]
[360908108,1747137043573,-400.0,0.00012456,2]
[360908109,1747137043582,-400.0,0.00012456,2]
[360908110,1747137043591,-475.37,0.00012456,2]
[360908111,1747137043600,-400.0,0.00012456,2]
[360908112,1747137043609,-428.54973154,0.00012456,2]
[360908113,1747137043619,-450.16,0.00012456,2]
[360908114,1747137043628,-400.0,0.00012456,2]
[360908115,1747137043637,-400.0,0.00012456,2]
[360908116,1747137043646,-400.0,0.00012456,2]
[360908117,1747137043656,-400.0,0.00012456,2]
[360908118,1747137043665,-1421.83,0.00012456,2]
[360908119,1747137043677,-768.28,0.00012456,2]
[360908120,1747137043686,-400.0,0.00012456,2]
[360908121,1747137043696,-400.0,0.00012456,2]
[360908122,1747137043705,-400.0,0.00012456,2]
[360908123,1747137043715,-1923.6,0.00012456,2]
[360908125,1747137043725,-400.0,0.00012456,2]
[360908126,1747137043735,-400.0,0.00012456,2]
[360908127,1747137043744,-451.06,0.00012456,2]
[360908128,1747137043753,-5893.29,0.00012456,2]
[360908129,1747137043763,-684.79,0.00012456,2]
[360908130,1747137043772,-400.0,0.00012456,2]
[360908132,1747137043781,-400.0,0.00012456,2]
[360908133,1747137043791,-491.81,0.00012456,2]
[360908135,1747137043800,-1706.2,0.00012456,2]
[360908137,1747137043808,-1000.0,0.00012456,2]
[360908138,1747137043817,-840.13,0.00012456,2]
[360908139,1747137043826,-400.0,0.00012456,2]
[360908141,1747137043835,-1468.1,0.00012456,2]
[360908142,1747137043844,-400.0,0.00012456,2]
[360908143,1747137043853,-400.0,0.00012456,2]
[360908144,1747137043862,-433.25,0.00012456,2]
[360908146,1747137043871,-400.0,0.00012456,2]
[360908147,1747137043880,-400.0,0.00012456,2]
[360908148,1747137043890,-400.0,0.00012456,2]
[360908149,1747137043899,-400.0,0.00012456,2]
[360908150,1747137043909,-400.0,0.00012456,2]
[360908151,1747137043919,-400.0,0.00012456,2]
[360908152,1747137043929,-400.0,0.00012456,2]
[360908153,1747137043938,-544.74,0.00012456,2]
[360908154,1747137043947,-466.32,0.00012456,2]
[360908155,1747137043956,-527.05,0.00012456,2]
[360908156,1747137043966,-1323.48,0.00012456,2]
[360908157,1747137043975,-400.0,0.00012456,2]
[360908158,1747137043984,-400.0,0.00012456,2]
[360908159,1747137043994,-1520.54,0.00012456,2]
[360908160,1747137044003,-400.0,0.00012456,2]
[360908161,1747137044013,-481.45,0.00012456,2]
[360908162,1747137044025,-400.0,0.00012456,2]
[360908163,1747137044034,-400.0,0.00012456,2]
[360908164,1747137044043,-400.0,0.00012456,2]
[360908165,1747137044053,-400.0,0.00012456,2]
[360908166,1747137044062,-400.0,0.00012456,2]
[360908167,1747137044071,-400.0,0.00012456,2]
[360908168,1747137044080,-400.0,0.00012456,2]
[360908169,1747137044089,-591.59,0.00012456,2]
[360908170,1747137044099,-400.0,0.00012456,2]
[360908171,1747137044109,-400.0,0.00012456,2]
[360908172,1747137044118,-1430.35,0.00012456,2]
[360908173,1747137044131,-442.67,0.00012456,2]
[360908174,1747137044141,-400.0,0.00012456,2]
[360908175,1747137044150,-400.0,0.00012456,2]
[360908176,1747137044159,-1139.06,0.00012456,2]
[360908177,1747137044171,-2060.18,0.00012456,2]
[360908178,1747137044180,-400.0,0.00012456,2]
[360908179,1747137044189,-452.6,0.00012456,2]
[360908180,1747137044198,-400.0,0.00012456,2]
[360908181,1747137044208,-400.0,0.00012456,2]
[360908182,1747137044217,-400.0,0.00012456,2]
[360908183,1747137044227,-1123.24,0.00012456,2]
[360908184,1747137044237,-1173.20780356,0.00012456,2]